[Event "FIDE World Rapid Chess Championship 2021"]
[White "Blanco Acevedo, Cristobal Jose"]
[Black "Kolosowski, Mateusz"]
[WhiteFideId "3900525"]
[BlackFideId "1129708"]
[WhiteElo "2289"]
[BlackElo "2371"]
[Result "1-0"]
[Round "07"]
[TimeControl "900+10"]
[Date "2021.12.27"]
[WhiteClock "0:00:30"]
[BlackClock "0:00:16"]

1. d4 {[%clk 0:15:00]}  Nf6 {[%clk 0:15:00]} 2. Nf3 {[%clk 0:15:00]}  g6 {[%clk 0:15:00]} 3. Bg5 {[%clk 0:15:00]}  Bg7 {[%clk 0:15:00]} 4. Nbd2 {[%clk 0:15:00]}  d5 {[%clk 0:15:00]} 5. e3 {[%clk 0:15:00]}  O-O {[%clk 0:15:00]} 6. Bd3 {[%clk 0:15:00]}  c5 {[%clk 0:15:34]} 7. c3 {[%clk 0:15:32]}  b6 {[%clk 0:15:34]} 8. O-O {[%clk 0:15:32]}  Bb7 {[%clk 0:15:34]} 9. Ne5 {[%clk 0:15:32]}  Qc8 {[%clk 0:15:12]} 10. Bxf6 {[%clk 0:15:15]}  exf6 {[%clk 0:08:59]} 11. Nef3 {[%clk 0:15:15]}  f5 {[%clk 0:08:59]} 12. Rc1 {[%clk 0:12:13]}  Nd7 {[%clk 0:08:37]} 13. c4 {[%clk 0:12:13]}  f4 {[%clk 0:08:18]} 14. cxd5 {[%clk 0:10:43]}  fxe3 {[%clk 0:07:05]} 15. fxe3 {[%clk 0:10:43]}  Bxd5 {[%clk 0:07:05]} 16. e4 {[%clk 0:10:43]}  Bb7 {[%clk 0:07:05]} 17. b4 {[%clk 0:10:43]}  Qd8 {[%clk 0:07:04]} 18. bxc5 {[%clk 0:06:20]}  Nxc5 {[%clk 0:07:04]} 19. dxc5 {[%clk 0:05:15]}  Qxd3 {[%clk 0:06:46]} 20. c6 {[%clk 0:05:15]}  Ba6 {[%clk 0:06:46]} 21. Re1 {[%clk 0:05:15]}  Rac8 {[%clk 0:06:41]} 22. Qb3 {[%clk 0:02:05]}  Rfd8 {[%clk 0:06:41]} 23. e5 {[%clk 0:02:05]}  Bh6 {[%clk 0:05:24]} 24. c7 {[%clk 0:01:21]}  Re8 {[%clk 0:05:24]} 25. Rc3 {[%clk 0:01:13]}  Qd7 {[%clk 0:02:40]} 26. Ne4 {[%clk 0:01:13]}  Bg7 {[%clk 0:02:40]} 27. Nd6 {[%clk 0:01:13]}  Bf8 {[%clk 0:02:40]} 28. Rd1 {[%clk 0:00:27]}  Be2 {[%clk 0:01:37]} 29. Nxe8 {[%clk 0:00:27]}  Qxe8 {[%clk 0:01:37]} 30. Rd2 {[%clk 0:00:27]}  Ba6 {[%clk 0:01:37]} 31. Qd5 {[%clk 0:00:27]}  Bb4 {[%clk 0:01:37]} 32. Rdc2 {[%clk 0:00:27]}  Qe7 {[%clk 0:01:37]} 33. Rb3 {[%clk 0:00:27]}  Kg7 {[%clk 0:00:55]} 34. Nd4 {[%clk 0:00:14]}  Bc5 {[%clk 0:00:55]} 35. Rxc5 {[%clk 0:00:14]}  bxc5 {[%clk 0:00:55]} 36. Qd6 {[%clk 0:00:14]}  Qh4 {[%clk 0:00:55]} 37. Nf3 {[%clk 0:00:14]}  Qc4 {[%clk 0:00:55]} 38. Rb1 {[%clk 0:00:14]}  Qxa2 {[%clk 0:00:55]} 39. Rd1 {[%clk 0:00:14]}  Qe6 {[%clk 0:00:55]} 40. Qxc5 {[%clk 0:00:14]}  Bb7 {[%clk 0:00:55]} 41. Qd6 {[%clk 0:00:30]}  a5 {[%clk 0:00:16]} 42. Ng5 {[%clk 0:00:30]}  Qf5 {[%clk 0:00:16]} 43. h4 {[%clk 0:00:30]}  Bxg2 {[%clk 0:00:16]} 44. Kxg2 {[%clk 0:00:30]}  Qg4+ {[%clk 0:00:16]} 45. Kh2 {[%clk 0:00:30]}  Qf4+ {[%clk 0:00:16]} 46. Kh3 {[%clk 0:00:30]}  Qe3+ {[%clk 0:00:16]} 47. Kg2 {[%clk 0:00:30]}  Qe2+ {[%clk 0:00:16]} 48. Kg3 {[%clk 0:00:30]}  Qe3+ {[%clk 0:00:16]} 49. Nf3 {[%clk 0:00:30]}  Qc3 {[%clk 0:00:16]} 50. Qf6+ {[%clk 0:00:30]}  Kh6 {[%clk 0:00:16]} 51. Rd7 {[%clk 0:00:30]} 1-0


[Site "http://www.Chess.com"]

[Event "FIDE World Rapid Chess Championship 2021"]
[White "Carlsson, Pontus"]
[Black "Nasuta, Grzegorz"]
[WhiteFideId "1705814"]
[BlackFideId "1141686"]
[WhiteElo "2436"]
[BlackElo "2345"]
[Result "1-0"]
[Round "07"]
[TimeControl "900+10"]
[Date "2021.12.27"]
[WhiteClock "0:04:36"]
[BlackClock "0:00:32"]

1. e4 {[%clk 0:15:00]}  c5 {[%clk 0:15:00]} 2. Nf3 {[%clk 0:15:00]}  d6 {[%clk 0:15:00]} 3. Bb5+ {[%clk 0:15:00]}  Nd7 {[%clk 0:15:00]} 4. d4 {[%clk 0:15:00]}  cxd4 {[%clk 0:15:00]} 5. Qxd4 {[%clk 0:15:00]}  a6 {[%clk 0:15:00]} 6. Bxd7+ {[%clk 0:15:00]}  Bxd7 {[%clk 0:15:00]} 7. Nc3 {[%clk 0:15:00]}  e5 {[%clk 0:15:00]} 8. Qd3 {[%clk 0:16:28]}  h6 {[%clk 0:16:03]} 9. O-O {[%clk 0:16:28]}  Nf6 {[%clk 0:16:03]} 10. Rd1 {[%clk 0:16:28]}  Rc8 {[%clk 0:16:03]} 11. Nd2 {[%clk 0:16:28]}  Qc7 {[%clk 0:16:03]} 12. Nf1 {[%clk 0:16:28]}  Be6 {[%clk 0:15:12]} 13. Ne3 {[%clk 0:16:24]}  Be7 {[%clk 0:15:12]} 14. Bd2 {[%clk 0:16:24]}  Qc5 {[%clk 0:12:57]} 15. Be1 {[%clk 0:15:32]}  O-O {[%clk 0:09:30]} 16. Kh1 {[%clk 0:15:04]}  Rfd8 {[%clk 0:09:30]} 17. f3 {[%clk 0:13:28]}  Rd7 {[%clk 0:05:53]} 18. Bf2 {[%clk 0:13:28]}  Bd8 {[%clk 0:05:53]} 19. Qe2 {[%clk 0:07:57]}  Qb4 {[%clk 0:02:55]} 20. Rab1 {[%clk 0:07:57]}  Rxc3 {[%clk 0:00:39]} 21. bxc3 {[%clk 0:08:02]}  Qxc3 {[%clk 0:00:39]} 22. Rd3 {[%clk 0:08:02]}  Qc6 {[%clk 0:00:39]} 23. a3 {[%clk 0:08:02]}  b5 {[%clk 0:00:39]} 24. Qd1 {[%clk 0:08:02]}  Bb6 {[%clk 0:00:39]} 25. Qe1 {[%clk 0:06:46]}  Bxe3 {[%clk 0:00:35]} 26. Bxe3 {[%clk 0:06:46]}  Bc4 {[%clk 0:00:35]} 27. Rd2 {[%clk 0:06:46]}  d5 {[%clk 0:00:35]} 28. exd5 {[%clk 0:06:46]}  Nxd5 {[%clk 0:00:35]} 29. Rbd1 {[%clk 0:06:46]}  Re7 {[%clk 0:00:38]} 30. Bf2 {[%clk 0:04:45]}  Nf6 {[%clk 0:00:38]} 31. Rd6 {[%clk 0:04:45]}  Qc7 {[%clk 0:00:38]} 32. Bb6 {[%clk 0:04:45]}  Qb7 {[%clk 0:00:38]} 33. Bd8 {[%clk 0:04:45]}  Re6 {[%clk 0:00:38]} 34. Bxf6 {[%clk 0:04:45]}  Rxf6 {[%clk 0:00:38]} 35. Rxf6 {[%clk 0:04:45]}  gxf6 {[%clk 0:00:32]} 36. Rd8+ {[%clk 0:04:36]}  Kh7 {[%clk 0:00:32]} 37. Qg3 {[%clk 0:04:36]} 1-0


[Site "http://www.Chess.com"]

[Event "FIDE World Rapid Chess Championship 2021"]
[White "Saraci, Nderim"]
[Black "Lubczynski, Rafal"]
[WhiteFideId "6351921"]
[BlackFideId "1126091"]
[WhiteElo "2414"]
[BlackElo "2289"]
[Result "1-0"]
[Round "07"]
[TimeControl "900+10"]
[Date "2021.12.27"]
[WhiteClock "0:00:47"]
[BlackClock "0:00:12"]

1. d4 {[%clk 0:15:00]}  d5 {[%clk 0:15:00]} 2. c4 {[%clk 0:15:00]}  c6 {[%clk 0:15:00]} 3. Nf3 {[%clk 0:15:00]}  Nf6 {[%clk 0:15:00]} 4. Qc2 {[%clk 0:14:36]}  g6 {[%clk 0:15:37]} 5. g3 {[%clk 0:14:36]}  Bg7 {[%clk 0:15:37]} 6. Bg2 {[%clk 0:14:36]}  Bf5 {[%clk 0:15:37]} 7. Qb3 {[%clk 0:14:36]}  Qb6 {[%clk 0:15:37]} 8. Nc3 {[%clk 0:14:36]}  Na6 {[%clk 0:15:50]} 9. O-O {[%clk 0:14:51]}  Qxb3 {[%clk 0:12:27]} 10. axb3 {[%clk 0:13:09]}  Bc2 {[%clk 0:12:27]} 11. Ra3 {[%clk 0:13:09]}  O-O {[%clk 0:11:02]} 12. Bf4 {[%clk 0:12:38]}  Be4 {[%clk 0:11:02]} 13. Rfa1 {[%clk 0:11:08]}  e6 {[%clk 0:06:41]} 14. Bf1 {[%clk 0:10:05]}  Bxf3 {[%clk 0:05:00]} 15. exf3 {[%clk 0:07:29]}  dxc4 {[%clk 0:05:00]} 16. bxc4 {[%clk 0:07:29]}  Nh5 {[%clk 0:05:00]} 17. Bd6 {[%clk 0:07:08]}  Rfd8 {[%clk 0:00:29]} 18. c5 {[%clk 0:07:08]}  Nb4 {[%clk 0:00:29]} 19. Rxa7 {[%clk 0:07:08]}  Rxa7 {[%clk 0:00:29]} 20. Rxa7 {[%clk 0:07:08]}  Bf8 {[%clk 0:00:12]} 21. Rxb7 {[%clk 0:05:10]}  Nc2 {[%clk 0:00:12]} 22. Bxf8 {[%clk 0:03:29]}  Kxf8 {[%clk 0:00:21]} 23. Ne4 {[%clk 0:03:29]}  Rxd4 {[%clk 0:00:12]} 24. Be2 {[%clk 0:00:47]}  Rb4 {[%clk 0:00:12]} 25. Rb6 {[%clk 0:00:47]}  h6 {[%clk 0:00:12]} 26. Bd3 {[%clk 0:00:47]}  Rxb6 {[%clk 0:00:12]} 27. cxb6 {[%clk 0:00:47]} 1-0


[Site "http://www.Chess.com"]

[Event "FIDE World Rapid Chess Championship 2021"]
[White "Duda, Jan-Krzysztof"]
[Black "Movsesian, Sergei"]
[WhiteFideId "1170546"]
[BlackFideId "310204"]
[WhiteElo "2801"]
[BlackElo "2667"]
[Result "1-0"]
[Round "08"]
[TimeControl "900+10"]
[Date "2021.12.27"]
[WhiteClock "0:00:19"]
[BlackClock "0:00:20"]

1. d4 {[%clk 0:15:00]}  d5 {[%clk 0:15:00]} 2. c4 {[%clk 0:15:00]}  c6 {[%clk 0:15:00]} 3. Nf3 {[%clk 0:15:00]}  Nf6 {[%clk 0:15:00]} 4. e3 {[%clk 0:15:00]}  Bf5 {[%clk 0:15:00]} 5. Nc3 {[%clk 0:14:53]}  e6 {[%clk 0:15:30]} 6. Nh4 {[%clk 0:14:53]}  Be4 {[%clk 0:15:30]} 7. f3 {[%clk 0:14:53]}  Bg6 {[%clk 0:15:30]} 8. Qb3 {[%clk 0:14:53]}  Qc7 {[%clk 0:15:30]} 9. Nxg6 {[%clk 0:14:53]}  hxg6 {[%clk 0:15:30]} 10. Bd2 {[%clk 0:14:53]}  Nbd7 {[%clk 0:15:30]} 11. O-O-O {[%clk 0:14:53]}  a5 {[%clk 0:15:30]} 12. c5 {[%clk 0:14:53]}  b6 {[%clk 0:15:30]} 13. cxb6 {[%clk 0:14:53]}  Nxb6 {[%clk 0:15:30]} 14. g4 {[%clk 0:14:04]}  a4 {[%clk 0:14:21]} 15. Qc2 {[%clk 0:14:04]}  a3 {[%clk 0:12:57]} 16. b3 {[%clk 0:13:26]}  Bd6 {[%clk 0:12:57]} 17. Kb1 {[%clk 0:13:26]}  Qb7 {[%clk 0:11:35]} 18. e4 {[%clk 0:12:36]}  dxe4 {[%clk 0:08:54]} 19. Nxe4 {[%clk 0:12:36]}  Be7 {[%clk 0:08:23]} 20. Nc5 {[%clk 0:10:17]}  Qc7 {[%clk 0:06:34]} 21. h4 {[%clk 0:10:17]}  Nfd5 {[%clk 0:06:16]} 22. h5 {[%clk 0:06:44]}  gxh5 {[%clk 0:06:16]} 23. gxh5 {[%clk 0:06:44]}  Nd7 {[%clk 0:05:04]} 24. Ne4 {[%clk 0:05:15]}  Qb6 {[%clk 0:05:04]} 25. h6 {[%clk 0:05:15]}  gxh6 {[%clk 0:05:04]} 26. Rxh6 {[%clk 0:05:15]}  Rxh6 {[%clk 0:04:27]} 27. Bxh6 {[%clk 0:04:10]}  Bb4 {[%clk 0:04:27]} 28. Bg5 {[%clk 0:04:10]}  f6 {[%clk 0:04:10]} 29. Nxf6+ {[%clk 0:01:55]}  N7xf6 {[%clk 0:04:10]} 30. Bxf6 {[%clk 0:01:55]}  Nxf6 {[%clk 0:02:13]} 31. Qg6+ {[%clk 0:01:25]}  Kd7 {[%clk 0:02:13]} 32. Qxf6 {[%clk 0:01:25]}  Rf8 {[%clk 0:02:13]} 33. Qg7+ {[%clk 0:01:25]}  Be7 {[%clk 0:02:13]} 34. Bc4 {[%clk 0:01:25]}  Qa5 {[%clk 0:02:13]} 35. Qe5 {[%clk 0:01:25]}  Qc3 {[%clk 0:01:43]} 36. Bxe6+ {[%clk 0:00:55]}  Ke8 {[%clk 0:01:43]} 37. Qh5+ {[%clk 0:00:55]}  Kd8 {[%clk 0:01:43]} 38. Qh2 {[%clk 0:00:55]}  Rf4 {[%clk 0:01:43]} 39. Bg4 {[%clk 0:00:32]}  Bd6 {[%clk 0:00:13]} 40. Qc2 {[%clk 0:00:32]}  Bb4 {[%clk 0:00:13]} 41. Qxc3 {[%clk 0:00:32]}  Bxc3 {[%clk 0:00:13]} 42. Rc1 {[%clk 0:00:32]}  Bb2 {[%clk 0:00:13]} 43. Rc3 {[%clk 0:00:32]}  c5 {[%clk 0:00:13]} 44. Rxc5 {[%clk 0:00:32]}  Rxd4 {[%clk 0:00:13]} 45. Rc6 {[%clk 0:00:32]}  Ke7 {[%clk 0:00:13]} 46. Kc2 {[%clk 0:00:32]}  Rd7 {[%clk 0:00:13]} 47. Rc4 {[%clk 0:00:32]}  Rd8 {[%clk 0:00:13]} 48. b4 {[%clk 0:00:32]}  Rd5 {[%clk 0:00:13]} 49. Bc8 {[%clk 0:00:32]}  Kd6 {[%clk 0:00:20]} 50. Bb7 {[%clk 0:00:19]}  Rg5 {[%clk 0:00:20]} 51. Kb3 {[%clk 0:00:19]}  Rg2 {[%clk 0:00:20]} 52. Be4 {[%clk 0:00:19]}  Re2 {[%clk 0:00:20]} 53. b5 {[%clk 0:00:19]}  Re3+ {[%clk 0:00:20]} 54. Kb4 {[%clk 0:00:19]}  Bf6 {[%clk 0:00:20]} 55. b6 {[%clk 0:00:19]}  Be7 {[%clk 0:00:20]} 56. b7 {[%clk 0:00:19]}  Kd7+ {[%clk 0:00:20]} 57. Ka4 {[%clk 0:00:19]}  Re2 {[%clk 0:00:20]} 58. b8=Q {[%clk 0:00:19]} 1-0


[Site "http://www.Chess.com"]

[Event "FIDE World Rapid Chess Championship 2021"]
[White "Fedoseev, Vladimir"]
[Black "Jobava, Baadur"]
[WhiteFideId "24130737"]
[BlackFideId "13601520"]
[WhiteElo "2692"]
[BlackElo "2679"]
[Result "1/2-1/2"]
[Round "08"]
[TimeControl "900+10"]
[Date "2021.12.27"]
[WhiteClock "0:03:11"]
[BlackClock "0:01:30"]

1. d4 {[%clk 0:15:00]}  d5 {[%clk 0:15:00]} 2. Nf3 {[%clk 0:15:00]}  Nf6 {[%clk 0:15:00]} 3. Bf4 {[%clk 0:15:00]}  Bf5 {[%clk 0:14:51]} 4. e3 {[%clk 0:15:04]}  e6 {[%clk 0:14:51]} 5. c4 {[%clk 0:15:04]}  c6 {[%clk 0:14:51]} 6. Nc3 {[%clk 0:15:04]}  Nbd7 {[%clk 0:14:51]} 7. Be2 {[%clk 0:15:04]}  Be7 {[%clk 0:14:51]} 8. Nh4 {[%clk 0:15:04]}  Be4 {[%clk 0:14:51]} 9. O-O {[%clk 0:15:04]}  O-O {[%clk 0:14:24]} 10. Qb3 {[%clk 0:13:15]}  Qb6 {[%clk 0:12:44]} 11. c5 {[%clk 0:12:25]}  Qxb3 {[%clk 0:12:44]} 12. axb3 {[%clk 0:12:25]}  a5 {[%clk 0:11:32]} 13. Bc7 {[%clk 0:11:45]}  Ne8 {[%clk 0:11:32]} 14. Bg3 {[%clk 0:11:45]}  Nef6 {[%clk 0:11:32]} 15. Rfc1 {[%clk 0:11:45]}  Rfc8 {[%clk 0:07:36]} 16. f3 {[%clk 0:11:45]}  Bg6 {[%clk 0:07:36]} 17. Nxg6 {[%clk 0:11:45]}  hxg6 {[%clk 0:07:36]} 18. Na4 {[%clk 0:10:07]}  Bd8 {[%clk 0:07:41]} 19. Be1 {[%clk 0:10:07]}  Bc7 {[%clk 0:07:41]} 20. f4 {[%clk 0:08:33]}  Ne4 {[%clk 0:05:12]} 21. h4 {[%clk 0:07:10]}  f5 {[%clk 0:05:12]} 22. g4 {[%clk 0:07:10]}  fxg4 {[%clk 0:05:12]} 23. Bxg4 {[%clk 0:07:10]}  Kf7 {[%clk 0:05:12]} 24. Bf3 {[%clk 0:07:10]}  Nef6 {[%clk 0:05:12]} 25. Rc2 {[%clk 0:07:10]}  Ng8 {[%clk 0:05:12]} 26. Rh2 {[%clk 0:06:47]}  Ne7 {[%clk 0:02:24]} 27. Kf1 {[%clk 0:06:47]}  Rh8 {[%clk 0:02:24]} 28. Rh3 {[%clk 0:06:47]}  Nf5 {[%clk 0:02:24]} 29. Ke2 {[%clk 0:06:47]}  Nf6 {[%clk 0:02:24]} 30. Kd3 {[%clk 0:06:47]}  Ra6 {[%clk 0:02:24]} 31. Be2 {[%clk 0:05:12]}  Raa8 {[%clk 0:01:47]} 32. Kc2 {[%clk 0:05:12]}  Ne4 {[%clk 0:01:47]} 33. Nc3 {[%clk 0:05:12]}  Nf6 {[%clk 0:01:30]} 34. Na4 {[%clk 0:03:11]}  Ne4 {[%clk 0:01:30]} 35. Nc3 {[%clk 0:03:11]}  Nf6 {[%clk 0:01:30]} 36. Na4 {[%clk 0:03:11]} 1/2-1/2


[Site "http://www.Chess.com"]

[Event "FIDE World Rapid Chess Championship 2021"]
[White "Alekseenko, Kirill"]
[Black "Nakamura, Hikaru"]
[WhiteFideId "4135539"]
[BlackFideId "2016192"]
[WhiteElo "2637"]
[BlackElo "2836"]
[Result "1/2-1/2"]
[Round "08"]
[TimeControl "900+10"]
[Date "2021.12.27"]
[WhiteClock "0:00:20"]
[BlackClock "0:02:00"]

1. e4 {[%clk 0:15:00]}  e5 {[%clk 0:15:00]} 2. Nf3 {[%clk 0:15:00]}  Nc6 {[%clk 0:15:00]} 3. Bb5 {[%clk 0:15:00]}  a6 {[%clk 0:15:36]} 4. Ba4 {[%clk 0:15:53]}  d6 {[%clk 0:15:36]} 5. O-O {[%clk 0:15:53]}  Bd7 {[%clk 0:15:36]} 6. c4 {[%clk 0:15:53]}  g6 {[%clk 0:15:36]} 7. d4 {[%clk 0:14:49]}  exd4 {[%clk 0:15:03]} 8. Nxd4 {[%clk 0:14:49]}  Bg7 {[%clk 0:15:03]} 9. Be3 {[%clk 0:14:49]}  Nge7 {[%clk 0:15:03]} 10. Nc3 {[%clk 0:14:49]}  Ne5 {[%clk 0:15:06]} 11. Bxd7+ {[%clk 0:12:34]}  Qxd7 {[%clk 0:15:06]} 12. b3 {[%clk 0:12:34]}  O-O {[%clk 0:15:06]} 13. Rc1 {[%clk 0:11:52]}  Rae8 {[%clk 0:13:11]} 14. h3 {[%clk 0:11:52]}  f5 {[%clk 0:12:15]} 15. exf5 {[%clk 0:10:08]}  Nxf5 {[%clk 0:11:05]} 16. Nxf5 {[%clk 0:08:50]}  Qxf5 {[%clk 0:11:05]} 17. Qd5+ {[%clk 0:08:10]}  Rf7 {[%clk 0:09:10]} 18. Rfd1 {[%clk 0:08:10]}  c6 {[%clk 0:09:10]} 19. Qe4 {[%clk 0:08:11]}  Qh5 {[%clk 0:09:10]} 20. Kf1 {[%clk 0:07:54]}  Rff8 {[%clk 0:05:19]} 21. Ne2 {[%clk 0:07:54]}  Nd7 {[%clk 0:04:18]} 22. Qd3 {[%clk 0:03:22]}  Nc5 {[%clk 0:04:18]} 23. Bxc5 {[%clk 0:03:22]}  dxc5 {[%clk 0:04:18]} 24. Ng1 {[%clk 0:02:33]}  g5 {[%clk 0:01:56]} 25. Re1 {[%clk 0:02:33]}  Rd8 {[%clk 0:01:56]} 26. Qe2 {[%clk 0:02:33]}  Qf7 {[%clk 0:01:56]} 27. Nf3 {[%clk 0:01:38]}  h6 {[%clk 0:01:05]} 28. Rcd1 {[%clk 0:01:38]}  Bd4 {[%clk 0:01:05]} 29. Qe6 {[%clk 0:01:38]}  Kg7 {[%clk 0:01:05]} 30. Qxf7+ {[%clk 0:01:38]}  Rxf7 {[%clk 0:01:05]} 31. Re4 {[%clk 0:01:38]}  Rfd7 {[%clk 0:01:05]} 32. Ke2 {[%clk 0:01:38]}  Kf6 {[%clk 0:01:05]} 33. Rd3 {[%clk 0:00:44]}  Bb2 {[%clk 0:01:15]} 34. Rxd7 {[%clk 0:00:44]}  Rxd7 {[%clk 0:01:15]} 35. Re3 {[%clk 0:00:44]}  Bd4 {[%clk 0:01:15]} 36. Re4 {[%clk 0:00:44]}  Bc3 {[%clk 0:01:15]} 37. g3 {[%clk 0:00:44]}  Rd8 {[%clk 0:01:15]} 38. Re3 {[%clk 0:00:44]}  Bd4 {[%clk 0:01:15]} 39. Rd3 {[%clk 0:00:44]}  a5 {[%clk 0:01:15]} 40. Nd2 {[%clk 0:00:44]}  Re8+ {[%clk 0:01:15]} 41. Kf1 {[%clk 0:00:44]}  a4 {[%clk 0:01:15]} 42. Nf3 {[%clk 0:00:44]}  axb3 {[%clk 0:01:15]} 43. axb3 {[%clk 0:00:44]}  Re4 {[%clk 0:01:15]} 44. Nd2 {[%clk 0:00:20]}  Re8 {[%clk 0:02:00]} 45. Nf3 {[%clk 0:00:20]} 1/2-1/2


[Site "http://www.Chess.com"]

[Event "FIDE World Rapid Chess Championship 2021"]
[White "Caruana, Fabiano"]
[Black "Cheparinov, Ivan"]
[WhiteFideId "2020009"]
[BlackFideId "2905540"]
[WhiteElo "2770"]
[BlackElo "2621"]
[Result "1/2-1/2"]
[Round "08"]
[TimeControl "900+10"]
[Date "2021.12.27"]
[WhiteClock "0:00:52"]
[BlackClock "0:02:11"]

1. d4 {[%clk 0:15:00]}  Nf6 {[%clk 0:15:00]} 2. Nf3 {[%clk 0:15:00]}  d5 {[%clk 0:15:00]} 3. c4 {[%clk 0:15:00]}  e6 {[%clk 0:15:00]} 4. g3 {[%clk 0:15:04]}  Bb4+ {[%clk 0:14:43]} 5. Bd2 {[%clk 0:15:04]}  a5 {[%clk 0:14:43]} 6. Bg2 {[%clk 0:15:04]}  O-O {[%clk 0:14:43]} 7. O-O {[%clk 0:15:04]}  dxc4 {[%clk 0:14:43]} 8. Bg5 {[%clk 0:15:04]}  c6 {[%clk 0:14:43]} 9. Ne5 {[%clk 0:15:04]}  b5 {[%clk 0:14:43]} 10. a3 {[%clk 0:13:00]}  Bd6 {[%clk 0:14:48]} 11. a4 {[%clk 0:10:07]}  Ra6 {[%clk 0:14:48]} 12. Nc3 {[%clk 0:08:53]}  h6 {[%clk 0:12:28]} 13. Bf4 {[%clk 0:08:53]}  Nd5 {[%clk 0:12:05]} 14. axb5 {[%clk 0:07:55]}  Nxc3 {[%clk 0:09:58]} 15. bxa6 {[%clk 0:07:55]}  Nxd1 {[%clk 0:09:58]} 16. a7 {[%clk 0:07:55]}  Bb7 {[%clk 0:09:58]} 17. axb8=Q {[%clk 0:07:55]}  Bxb8 {[%clk 0:09:11]} 18. Rfxd1 {[%clk 0:05:01]}  Bxe5 {[%clk 0:09:11]} 19. dxe5 {[%clk 0:05:01]}  Qb6 {[%clk 0:09:11]} 20. Be3 {[%clk 0:05:17]}  c5 {[%clk 0:07:48]} 21. Bxb7 {[%clk 0:05:17]}  Qxb7 {[%clk 0:07:48]} 22. Bxc5 {[%clk 0:05:17]}  Rc8 {[%clk 0:07:48]} 23. Bd4 {[%clk 0:05:17]}  Qe4 {[%clk 0:07:34]} 24. Bc3 {[%clk 0:03:27]}  Qxe2 {[%clk 0:07:34]} 25. Rd2 {[%clk 0:03:27]}  Qf3 {[%clk 0:07:34]} 26. Rxa5 {[%clk 0:03:27]}  Ra8 {[%clk 0:06:40]} 27. Rxa8+ {[%clk 0:02:33]}  Qxa8 {[%clk 0:06:40]} 28. Rd4 {[%clk 0:02:33]}  Qf3 {[%clk 0:06:40]} 29. h4 {[%clk 0:02:33]}  Qe2 {[%clk 0:06:40]} 30. Rf4 {[%clk 0:01:56]}  g5 {[%clk 0:04:37]} 31. hxg5 {[%clk 0:01:56]}  hxg5 {[%clk 0:04:37]} 32. Rf6 {[%clk 0:01:56]}  Kg7 {[%clk 0:04:37]} 33. Kg2 {[%clk 0:01:56]}  Qe4+ {[%clk 0:04:37]} 34. Kh3 {[%clk 0:01:56]}  Qe2 {[%clk 0:04:37]} 35. Kg2 {[%clk 0:01:56]}  Qd1 {[%clk 0:04:37]} 36. Kh3 {[%clk 0:00:53]}  Qh5+ {[%clk 0:04:27]} 37. Kg2 {[%clk 0:00:53]}  Kf8 {[%clk 0:04:27]} 38. Bb4+ {[%clk 0:00:53]}  Ke8 {[%clk 0:04:27]} 39. Bc3 {[%clk 0:00:53]}  Kd7 {[%clk 0:04:27]} 40. Bb4 {[%clk 0:00:53]}  Kc6 {[%clk 0:03:38]} 41. Bc3 {[%clk 0:00:41]}  Kd5 {[%clk 0:03:38]} 42. Rf3 {[%clk 0:00:41]}  Qh7 {[%clk 0:03:38]} 43. Rf6 {[%clk 0:00:41]}  Ke4 {[%clk 0:03:38]} 44. Rf3 {[%clk 0:00:41]}  Qh5 {[%clk 0:03:38]} 45. Re3+ {[%clk 0:00:41]}  Kd5 {[%clk 0:03:38]} 46. Re1 {[%clk 0:00:41]}  Kc5 {[%clk 0:02:11]} 47. Ra1 {[%clk 0:00:52]}  Kd5 {[%clk 0:02:11]} 48. Re1 {[%clk 0:00:52]} 1/2-1/2


[Site "http://www.Chess.com"]

[Event "FIDE World Rapid Chess Championship 2021"]
[White "Giri, Anish"]
[Black "Volokitin, Andrei"]
[WhiteFideId "24116068"]
[BlackFideId "14107090"]
[WhiteElo "2767"]
[BlackElo "2631"]
[Result "1/2-1/2"]
[Round "08"]
[TimeControl "900+10"]
[Date "2021.12.27"]
[WhiteClock "0:04:35"]
[BlackClock "0:00:40"]

1. Nf3 {[%clk 0:15:00]}  d5 {[%clk 0:15:00]} 2. d4 {[%clk 0:15:00]}  Nf6 {[%clk 0:15:00]} 3. c4 {[%clk 0:15:00]}  e6 {[%clk 0:15:00]} 4. g3 {[%clk 0:15:00]}  Bb4+ {[%clk 0:15:00]} 5. Bd2 {[%clk 0:15:00]}  Be7 {[%clk 0:16:02]} 6. Bg2 {[%clk 0:16:03]}  O-O {[%clk 0:16:02]} 7. O-O {[%clk 0:16:03]}  c6 {[%clk 0:16:02]} 8. Qc2 {[%clk 0:16:03]}  Nbd7 {[%clk 0:16:02]} 9. Rc1 {[%clk 0:16:03]}  a5 {[%clk 0:14:47]} 10. e3 {[%clk 0:15:45]}  b5 {[%clk 0:14:47]} 11. cxb5 {[%clk 0:15:45]}  cxb5 {[%clk 0:08:43]} 12. Nc3 {[%clk 0:15:45]}  b4 {[%clk 0:08:51]} 13. Na4 {[%clk 0:12:57]}  Ba6 {[%clk 0:08:51]} 14. Bf1 {[%clk 0:12:57]}  Bxf1 {[%clk 0:08:51]} 15. Kxf1 {[%clk 0:12:57]}  Ne4 {[%clk 0:06:31]} 16. Qc7 {[%clk 0:13:03]}  g5 {[%clk 0:04:27]} 17. Be1 {[%clk 0:11:25]}  g4 {[%clk 0:04:27]} 18. Nd2 {[%clk 0:10:19]}  Nxd2+ {[%clk 0:01:01]} 19. Bxd2 {[%clk 0:10:19]}  Nf6 {[%clk 0:01:01]} 20. Qxd8 {[%clk 0:10:04]}  Rfxd8 {[%clk 0:00:58]} 21. Rc6 {[%clk 0:10:04]}  Ne4 {[%clk 0:00:58]} 22. Ke2 {[%clk 0:10:04]}  Rdc8 {[%clk 0:00:58]} 23. Rac1 {[%clk 0:10:04]}  Rxc6 {[%clk 0:00:58]} 24. Rxc6 {[%clk 0:10:04]}  Kf8 {[%clk 0:01:06]} 25. Be1 {[%clk 0:06:13]}  Ke8 {[%clk 0:01:06]} 26. f3 {[%clk 0:06:13]}  gxf3+ {[%clk 0:01:06]} 27. Kxf3 {[%clk 0:06:13]}  Bd6 {[%clk 0:01:06]} 28. Nb6 {[%clk 0:04:35]}  Ra6 {[%clk 0:00:40]} 29. Rc8+ {[%clk 0:04:35]}  Ke7 {[%clk 0:00:40]} 30. Rc6 {[%clk 0:04:35]}  Ke8 {[%clk 0:00:40]} 31. Rc8+ {[%clk 0:04:35]}  Ke7 {[%clk 0:00:40]} 1/2-1/2


[Site "http://www.Chess.com"]